[Event "87th Spanish Championship 2022"]
[Site "Linares"]
[Date "2022.08.13"]
[Round "4.17"]
[White "Fernandez Garcia, Jose Luis"]
[Black "Saenz Narciso, Miguel Angel"]
[Result "1-0"]
[ECO "B40"]
[WhiteElo "2362"]
[BlackElo "2222"]
[Annotator "TA"]
[PlyCount "87"]
[EventDate "2022.08.11"]
[EventType "swiss"]
[EventCountry "ESP"]
[SourceTitle "playchess.com"]
[Source "ChessBase"]
[SourceQuality "1"]
[TimeControl "5400+30"]

{[%evp 9,87,0,33,26,30,28,31,25,42,46,51,32,49,52,53,42,58,50,64,62,64,61,74,107,109,116,116,112,165,151,149,158,154,144,173,174,236,246,258,251,255,235,212,157,157,153,377,259,310,153,267,267,260,209,210,208,216,161,255,237,625,532,596,612,512,575,794,745,1375,852,852,852,836,818,29973,29976,29988,29989,29994,768]} 1. e4 {[%emt 0:01:15]} c5 {[%emt 0:00:07]} 2. Nf3 {[%emt 0:00:08]} e6 {[%emt 0:00:05]} 3. d4 {[%emt 0:01:39]} cxd4 {[%emt 0:00:06]} 4. Nxd4 {[%emt 0:00:05]} Bc5 {[%emt 0:00:05]} 5. c3 {[%emt 0:07:44]} Qb6 {[%emt 0:03:24]} 6. Na3 {[%emt 0:01:18] B40: Sicilian: 2...e6, Unusual lines.} d5 {[%emt 0:01:02] Against Nc4} 7. exd5 {[%emt 0:03:05]} exd5 {[%emt 0:00:07] [#]} 8. Bb5+ $146 {[%emt 0:00:21] White is slightly better.} ({Predecessor:} 8. Nac2 Ne7 9. Be2 O-O 10. O-O Nbc6 11. Nb3 Bd6 12. Be3 Qc7 13. g3 Bf5 14. Ncd4 {0-1 (50) Grigoriants,S (2542)-Kowalczyk,P (2340) Chess.com INT 2020}) 8... Bd7 {[%emt 0:00:15]} 9. O-O {[%emt 0:04:38]} Ne7 {[%emt 0:08:10]} 10. Be3 {[%emt 0:05:25][%cal Bc1e3,Be3d4,Bd4c5][%mdl 32]} O-O {[%emt 0:14:13]} 11. b4 {[%emt 0:17:02]} Bxd4 {[%emt 0:04:11]} 12. Bxd4 {[%emt 0:00:17]} Qc7 {[%emt 0:03:20]} 13. Re1 {[%emt 0:02:39]} Be6 {[%emt 0:08:40]} 14. Bc5 {[%emt 0:07:15][%cal Of2f4]} a6 {[%emt 0:06:00]} 15. Ba4 {[%emt 0:01:56]} b5 {[%emt 0:03:26]} 16. Bb3 {[%emt 0:00:33]} Nbc6 {[%emt 0:00:25]} 17. Nc2 {[%emt 0:00:09]} Rfd8 {[%emt 0:04:46]} 18. a4 {[%emt 0:01:34]} Qb7 {[%emt 0:08:26]} (18... bxa4 $16 19. Bxa4 (19. Rxa4 Nf5 $16) 19... Nf5 20. Bxc6 Qxc6) 19. Nd4 $18 {[%emt 0:05:11]} Nxd4 {[%emt 0:00:27]} 20. Qxd4 {[%emt 0:00:15]} Nf5 {[%emt 0:01:19]} 21. Qf4 {[%emt 0:00:51]} bxa4 {[%emt 0:06:49]} 22. Bxa4 {[%emt 0:01:05]} a5 {[%emt 0:00:25]} (22... Qb8 $142 23. Qf3 Qc8) 23. Bc2 {[%emt 0:00:27][%csl LRa5,LRf5] A strong pair of Bishops.} Qc8 {[%emt 0:01:41]} 24. Bb6 {[%emt 0:02:18]} Rd6 {[%emt 0:01:04]} 25. bxa5 {[%emt 0:08:11]} Rc6 {[%emt 0:05:18]} 26. Bxf5 {[%emt 0:01:28]} Bxf5 {[%emt 0:00:05]} 27. Bd4 {[%emt 0:00:05][%cal Oa5a6] Hoping for a6!} Re6 {[%emt 0:01:34] Black cannot hold the game after this.} (27... h6 $16 28. Qe5 Rg6 29. Qxd5 Bd7) 28. h4 {Rxe6 is the strong threat.} f6 {[%emt 0:02:33][%cal Oa8a5]} (28... Rxe1+ 29. Rxe1 Be6 30. Qe5 $18) 29. Re3 {[%emt 0:10:37]} (29. Rxe6 $18 {is the precise move to win.} Bxe6 30. Rb1) 29... Re4 {[%emt 0:02:11]} (29... Rxe3 $16 30. Qxe3 h6) 30. Rxe4 {[%emt 0:00:23]} Bxe4 {[%emt 0:00:04]} 31. f3 {[%emt 0:00:34]} Bd3 {[%emt 0:00:11]} 32. Qd6 {[%emt 0:02:26]} Bc4 {[%emt 0:00:25]} 33. Rb1 {[%emt 0:00:49][%cal Ba1b1,Bb1b6,Bb6c6][%mdl 32]} h6 {[%emt 0:00:54] [#]} (33... h5 $142 34. Rb6 Ra6) 34. Rb6 $1 {[%emt 0:06:07][%cal Od4f6] Threatens to win with Bxf6!} Qe8 $2 {[%emt 0:03:34]} (34... Ra6 35. h5 (35. Rxa6 Qxa6 36. Qxa6 Bxa6 $16) 35... Rxb6 36. axb6 Kf7) 35. Qg3 {[%emt 0:00:52]} Kh7 {[%emt 0:02:08] [#]} 36. Bxf6 $1 {[%emt 0:04:40][%csl Gf6][%cal Rg3g7][%mdl 512]} Qf7 {[%emt 0:00:14]} 37. Bd4 {[%emt 0:01:37]} Rxa5 {[%emt 0:00:11]} 38. Rc6 {[%emt 0:00:27] Rc7 would kill now.} Ra6 {[%emt 0:03:26]} 39. Rc7 {[%emt 0:00:49]} Rg6 {[%emt 0:00:04]} 40. Qe5 {[%emt 0:00:18]} Qf8 {[%emt 0:00:55]} 41. Kf2 {[%emt 0:01:36]} Kh8 {[%emt 0:00:48]} 42. h5 {[%emt 0:00:37] White mates.} Rg5 {[%emt 0:00:26]} 43. Qe6 {[%emt 0:00:10] Active counter play!} Ba6 {[%emt 0:01:03]} 44. Qxh6+ {[%emt 0:00:11] Weighted Error Value: White=0.15 (very precise) /Black=0.56} 1-0

[Event "87th Spanish Championship 2022"]
[Site "Linares"]
[Date "2022.08.13"]
[Round "4.18"]
[White "Martinez-Conde Hernandez, Carlos"]
[Black "Martinez Fernandez, Adrian"]
[Result "1-0"]
[ECO "B06"]
[WhiteElo "2205"]
[BlackElo "2366"]
[Annotator "TA"]
[PlyCount "87"]
[EventDate "2022.08.11"]
[EventType "swiss"]
[EventCountry "ESP"]
[SourceTitle "playchess.com"]
[Source "ChessBase"]
[SourceQuality "1"]
[TimeControl "5400+30"]

{[%evp 17,87,13,36,9,13,6,0,0,19,0,-9,0,0,-4,8,0,0,-41,0,0,7,0,0,-20,-2,-41,-22,-30,-20,-33,-25,-20,0,0,0,0,0,0,0,0,596,582,579,600,2120,2007,1991,1988,1943,1898,1929,1814,1790,1594,29986,1726,29991,29984,29989,29990,29990,29991,29993,29980,6403,1435,1293,966,29994,29995,29995,1116]} 1. e4 {[%emt 0:00:06]} g6 {[%emt 0:00:13]} 2. d4 {[%emt 0:00:30]} Bg7 {[%emt 0:00:06]} 3. Nc3 {[%emt 0:01:15]} c6 {[%emt 0:00:06]} 4. h3 {[%emt 0:01:13]} d5 {[%emt 0:00:07]} 5. Nf3 {[%emt 0:00:14]} dxe4 {[%emt 0:00:05]} 6. Nxe4 {[%emt 0:00:08]} Nf6 {[%emt 0:00:04]} 7. Nxf6+ {[%emt 0:05:52]} exf6 {[%emt 0:00:29]} 8. Bc4 {[%emt 0:01:35]} O-O {[%emt 0:00:10]} 9. O-O {[%emt 0:00:08]} Nd7 {[%emt 0:00:07][%cal Bb8d7,Bd7b6,Bb6d5][%mdl 32]} 10. c3 {[%emt 0:03:58] B15: Caro-Kann: 3 Nc3: 3...g6 and 3...dxe4 4 Nxe4 Nf6 5 Nxf6+ exf6.} Nb6 {[%emt 0:00:14] 10...b5 might become the main line.} 11. Bb3 {[%emt 0:00:30]} a5 {[%emt 0:00:10]} 12. a4 {[%emt 0:00:28] The position is equal.} Bf5 {[%emt 0:00:17]} 13. Bf4 {[%emt 0:16:16] [#]} Nd5 $146 {[%emt 0:00:30]} ({Predecessor:} 13... Qd7 14. Nd2 Nd5 15. Bh2 Bh6 16. Bc2 Rfe8 17. Bxf5 Qxf5 18. Nc4 Bf4 19. Bxf4 Qxf4 20. Qg4 Qc7 21. Rfe1 Kg7 22. Qf3 Re7 23. Re4 Rae8 24. Rae1 Rxe4 {½-½ (24) Shamugia,S (2197)-Sergienko,S (2438) Voronezh 2008}) 14. Bg3 {[%emt 0:00:29]} Re8 {[%emt 0:15:43]} 15. Bc2 {[%emt 0:12:51]} Be6 {[%emt 0:02:10]} 16. Nd2 {[%emt 0:08:37]} f5 {[%emt 0:02:02]} 17. Qf3 {[%emt 0:00:21]} Nb6 {[%emt 0:08:11]} (17... c5 $5 {[%cal Rc5d4]}) 18. Rfe1 {[%emt 0:03:19]} Rc8 {[%emt 0:04:31]} 19. Rad1 {[%emt 0:11:06]} Bf8 {[%emt 0:00:52]} 20. b3 {[%emt 0:04:02]} Bh6 {[%emt 0:06:16]} 21. c4 {[%emt 0:03:42]} Qxd4 {[%emt 0:11:22]} 22. Be5 {[%emt 0:00:21]} Qd8 {[%emt 0:05:17]} 23. Bc3 {[%emt 0:14:55]} Nd7 {[%emt 0:01:33]} 24. Qd3 {[%emt 0:01:22]} Qc7 {[%emt 0:11:23]} 25. Nf3 {[%emt 0:02:07] Threatens to win with Qd4.} Rcd8 {[%emt 0:00:16]} 26. Qd4 {[%emt 0:00:13][%csl Gc3][%cal Rd4h8] Against Nc5} f6 {[%emt 0:00:10][%cal Od7e5]} 27. Qa7 $36 {[%emt 0:00:27][%mdl 2048] White has some pressure.} Ra8 {[%emt 0:02:36]} 28. Qd4 {[%emt 0:00:03][%cal Oe1e6] Rxe6! is the strong threat.} Kf7 {[%emt 0:06:56][%mdl 8192] [#] White leaves nothing to chance now.} (28... Rad8 $11 {and Black is okay.}) 29. Qh4 $1 $18 {[%emt 0:01:16] Hoping for Rxd7+.} Bg7 {[%emt 0:09:38]} 30. Qxh7 {[%emt 0:00:09]} Rg8 {[%emt 0:00:05] [#]} 31. Rxe6 $1 {[%emt 0:00:59][%mdl 512]} Kxe6 {[%emt 0:00:04]} 32. Qxg6 {[%emt 0:00:03]} Ke7 {[%emt 0:01:56]} 33. Bxf5 {[%emt 0:00:48] A strong pair of Bishops.} Bh8 {[%emt 0:09:50]} 34. Qh7+ {[%emt 0:01:33]} Rg7 {[%emt 0:00:01]} 35. Qh4 {[%emt 0:00:11]} Rd8 {[%emt 0:03:08]} 36. Bxd7 {[%emt 0:00:41]} (36. Re1+ $142 Ne5 37. Bxe5 Qxe5 38. Nxe5 Kd6 39. Rd1+ Kc5 40. Rxd8 fxe5 41. Qxh8) 36... Rxd7 {[%emt 0:00:05]} 37. Bxf6+ {[%emt 0:00:57]} Ke6 {[%emt 0:01:34]} 38. Re1+ {[%emt 0:00:06]} Kf7 {[%emt 0:00:23]} 39. Ne5+ {[%emt 0:00:29]} Kg8 {[%emt 0:00:07]} 40. Nxd7 {[%emt 0:00:16]} Qxd7 {[%emt 0:00:11]} 41. Bxg7 {[%emt 0:00:14]} Bxg7 {[%emt 0:00:11]} 42. Qg4 {[%emt 0:00:21]} Qc7 {[%emt 0:00:38]} 43. Re8+ {[%emt 0:00:07]} Kh7 {[%emt 0:00:20]} 44. Qf5+ {[%emt 0:00:17] Weighted Error Value: White=0.11 (very precise) /Black=0.87} 1-0

[Event "87th Spanish Championship 2022"]
[Site "Linares"]
[Date "2022.08.13"]
[Round "4.19"]
[White "Bermudez Ureba, Juan Diego"]
[Black "Gomez Dieguez, David"]
[Result "0-1"]
[ECO "C68"]
[WhiteElo "2198"]
[BlackElo "2372"]
[Annotator "TA"]
[PlyCount "52"]
[EventDate "2022.08.11"]
[EventType "swiss"]
[EventCountry "ESP"]
[SourceTitle "playchess.com"]
[Source "ChessBase"]
[SourceQuality "1"]
[TimeControl "5400+30"]

{[%evp 13,52,10,0,0,13,0,0,0,0,-28,-25,-16,-25,-27,-8,-52,-32,-120,-57,-94,-64,-81,-75,-70,-63,-164,-138,-153,-135,-135,-127,-120,-125,-135,-111,-96,-87,-133,-125,-614,-595]} 1. e4 {[%emt 0:00:02]} e5 {[%emt 0:00:06]} 2. Nf3 {[%emt 0:00:03]} Nc6 {[%emt 0:00:02]} 3. Bb5 {[%emt 0:00:04]} a6 {[%emt 0:00:04]} 4. Bxc6 {[%emt 0:00:03]} dxc6 {[%emt 0:00:04]} 5. Nc3 {[%emt 0:00:04]} Qf6 {[%emt 0:04:04]} 6. d4 {[%emt 0:00:16]} exd4 {[%emt 0:00:11]} 7. Qxd4 {[%emt 0:00:15]} Qxd4 {[%emt 0:01:05]} (7... Bg4 {feels hotter.} 8. Bg5 Qxd4 9. Nxd4 f6) 8. Nxd4 {[%emt 0:00:03] C68: Ruy Lopez: Exchange Variation, sidelines.} Bd7 {[%emt 0:00:06]} 9. Be3 {[%emt 0:00:06]} O-O-O {[%emt 0:02:10]} 10. O-O-O {[%emt 0:02:49] The position is equal.} Ne7 {[%emt 0:01:40][%cal Bg8e7,Be7g6,Bg6e5,Be5c4,Bc4a3][%mdl 32]} 11. f4 {[%emt 0:13:51]} Ng6 {[%emt 0:05:17]} 12. Nf3 {[%emt 0:01:07] [#]} Bd6 $146 {[%emt 0:07:08]} ({Predecessor:} 12... Re8 13. f5 Ne5 14. Nxe5 Rxe5 15. Bd4 Re8 16. g4 f6 17. Rhe1 h5 18. gxh5 Rxh5 {0-1 (57) Socko,M (2421)-Kiolbasa,O (2255) chess24.com INT 2021}) 13. f5 {[%emt 0:16:33]} Ne5 {[%emt 0:06:45]} 14. Kb1 {[%emt 0:11:31]} (14. Bd4 $5 {[%cal Rd4e5]} Nxf3 15. gxf3 $11) 14... Rde8 {[%emt 0:09:32][%cal Od7f5]} 15. h3 {[%emt 0:03:09]} (15. Bd4 $15) 15... f6 {[%emt 0:04:29]} (15... Nxf3 $17 16. gxf3 Bxf5) 16. Rhe1 {[%emt 0:10:46]} Nc4 {[%emt 0:15:07]} 17. Bd4 {[%emt 0:02:16]} Re7 {[%emt 0:02:12]} 18. g4 {[%emt 0:02:54]} Rhe8 {[%emt 0:03:36]} 19. h4 {[%emt 0:07:21]} ({White should try} 19. Bf2 $15) 19... c5 {[%emt 0:08:18]} 20. Bf2 {[%emt 0:00:44]} Bc6 {[%emt 0:00:22][%cal Rc6e4]} 21. b3 {[%emt 0:01:16] [#]} Na3+ {[%emt 0:03:06]} 22. Kb2 {[%emt 0:00:05]} Nb5 {[%emt 0:00:08]} 23. e5 {[%emt 0:02:59] Threatens to win with Nxb5.} Nxc3 {[%emt 0:01:21]} ({Worse is} 23... fxe5 24. Ne4 $15) 24. Kxc3 {[%emt 0:00:11]} fxe5 {[%emt 0:06:37][%cal Bf6e5,Be5e4,Be4e3][%mdl 32]} 25. Ng5 {[%emt 0:00:16]} ({White should play} 25. Nd2) 25... e4 $17 {[%emt 0:00:20] [#] White must now prevent ...e3.} 26. Nxh7 $2 {[%emt 0:02:09][%mdl 8192]} (26. Be3 $17) 26... e3 {[%emt 0:01:30] Weighted Error Value: White=0.70/Black=0.09 (flawless)} 0-1

[Event "87th Spanish Championship 2022"]
[Site "Linares"]
[Date "2022.08.13"]
[Round "4.20"]
[White "Alshameary Puente, Ismael"]
[Black "Jimenez Bernal, Francisco"]
[Result "1/2-1/2"]
[ECO "D38"]
[WhiteElo "2352"]
[BlackElo "2149"]
[Annotator "TA"]
[PlyCount "61"]
[EventDate "2022.08.11"]
[EventType "swiss"]
[EventCountry "ESP"]
[SourceTitle "playchess.com"]
[Source "ChessBase"]
[SourceQuality "1"]
[TimeControl "5400+30"]

{[%evp 13,61,24,30,10,27,21,38,23,67,58,58,20,14,0,0,0,0,0,33,33,33,28,30,34,0,4,37,6,26,0,8,0,0,-8,-8,-12,0,-33,-20,-22,-27,-39,-37,-282,0,0,0,0,0,0]} 1. d4 Nf6 2. c4 e6 3. Nf3 d5 4. Nc3 Bb4 5. cxd5 exd5 6. Bg5 Nbd7 7. Qc2 c5 8. g3 {D38: Queen's Gambit Declined: Ragozin Defence (4 Nf3 Bb4).} Qa5 9. Bg2 O-O 10. O-O {[%cal Oc3d5] [#] White is slightly better.} c4 $146 ({Predecessor:} 10... cxd4 11. Nxd4 Bxc3 12. bxc3 h6 13. Bxf6 Nxf6 14. c4 Qc5 15. e3 Be6 16. Rab1 Rab8 {½-½ (52) Hernandez Carmenates,H (2569)-Laxman,R (2422) Barcelona 2012}) 11. Ne5 {And now Nxd7 would win. White is more active.} Bxc3 12. Nxd7 Bxd7 13. bxc3 Ne4 14. Be7 Rfe8 15. Bb4 Qa4 16. Qxa4 Bxa4 17. f3 {[%cal Bf2f3,Bf3e4,Be4e5][%mdl 32]} a5 {[#] Strongly threatening ...Nxg3.} 18. fxe4 axb4 19. e5 Bc6 20. cxb4 {[%cal Ob4b5] Black must now prevent b5!} b5 21. g4 Ra3 22. Rf4 f6 23. Rf5 fxe5 24. dxe5 Re3 {[%csl LRe2,LRe5]} 25. e6 Rxe2 (25... R3xe6 {is interesting.} 26. a4 bxa4 27. b5 Bb7) 26. Bxd5 Bxd5 27. Rxd5 R8xe6 {[#] Hoping for ...c3.} 28. Rxb5 $2 $15 {KRR-KRR} (28. Rf1 $15) 28... h6 $2 (28... c3 $19 29. Rc5 c2) 29. Rc5 $11 {The position is equal.} Rb2 30. Rxc4 {[%cal Og4g5]} Ree2 {[%csl LRa2,LRh2]} 31. a4 {Weighted Error Value: White=0.29 (precise) /Black=0.20 (precise)} 1/2-1/2

[Event "87th Spanish Championship 2022"]
[Site "Linares"]
[Date "2022.08.13"]
[Round "4.21"]
[White "Ilinca Ilinca, Felix Antonio"]
[Black "Fernandez Lopez, Ruben"]
[Result "1/2-1/2"]
[ECO "A27"]
[WhiteElo "2162"]
[BlackElo "2324"]
[Annotator "TA"]
[PlyCount "61"]
[EventDate "2022.08.11"]
[EventType "swiss"]
[EventCountry "ESP"]
[SourceTitle "playchess.com"]
[Source "ChessBase"]
[SourceQuality "1"]
[TimeControl "5400+30"]

{[%evp 9,61,49,51,17,19,18,16,15,40,48,79,77,77,79,75,76,71,84,97,100,151,153,152,114,109,118,145,145,149,155,161,158,154,161,179,114,114,108,116,140,191,195,183,158,309,314,285,0,0,0,0,0,0,0]} 1. c4 {[%emt 0:00:51]} e5 {[%emt 0:00:05]} 2. Nc3 {[%emt 0:00:31]} Nc6 {[%emt 0:00:05]} 3. Nf3 {[%emt 0:00:42]} Bc5 {[%emt 0:00:17]} 4. Nxe5 {[%emt 0:10:37]} Nxe5 {[%emt 0:01:58]} 5. d4 {[%emt 0:00:40]} Bd6 {[%emt 0:03:55]} 6. dxe5 {[%emt 0:03:33] A27: English Opening: Three Knights Variation.} (6. c5 $5 {[%cal Rc5d6]}) 6... Bxe5 {[%emt 0:00:04]} 7. Qd3 {[%emt 0:05:19] [#]} d6 $146 {[%emt 0:05:56]} ({Predecessor:} 7... c6 8. g3 d6 9. Bg2 Nf6 10. O-O O-O 11. Bd2 Nd7 12. Rad1 Nc5 13. Qc2 a5 {0-1 (52) Valmana Canto,J (2429)-Carbonell Sancho,M (2159) Alfafar 2020}) 8. g3 {[%emt 0:03:08]} Ne7 {[%emt 0:06:46]} 9. Bg2 {[%emt 0:04:00]} Bf5 {[%emt 0:00:46]} 10. e4 {[%emt 0:05:44]} Be6 {[%emt 0:01:42]} 11. f4 {[%emt 0:05:41]} Bf6 {[%emt 0:04:31]} 12. O-O {[%emt 0:03:50]} O-O {[%emt 0:00:20]} 13. Be3 {[%emt 0:09:38]} Bxc3 {[%emt 0:03:23]} 14. Qxc3 {[%emt 0:01:14]} f5 {[%emt 0:00:18]} ({Better is} 14... f6) 15. Bd4 $16 {[%emt 0:06:53]} Rf7 {[%emt 0:00:22]} 16. Rae1 {[%emt 0:02:57]} fxe4 {[%emt 0:01:13]} 17. Bxe4 {[%emt 0:03:25]} c5 {[%emt 0:00:36]} 18. Bf2 {[%emt 0:03:08][%cal Oe4h7] And now Bxh7+! would win. This bishop pair is nice.} Bh3 {[%emt 0:09:34]} 19. Bxb7 {[%emt 0:01:13]} Rb8 {[%emt 0:01:09]} 20. Bg2 {[%emt 0:01:04]} Bxg2 {[%emt 0:00:14]} 21. Kxg2 {[%emt 0:00:08]} Qd7 {[%emt 0:01:03]} 22. Re2 {[%emt 0:03:14]} (22. b3 $18) 22... g5 {[%emt 0:00:45] [#]} 23. Be3 $1 {[%emt 0:11:21][%cal Bf2e3,Be3d2,Bd2c3][%mdl 32] Active counter play!} Qb7+ {[%emt 0:00:28]} 24. Kg1 {[%emt 0:00:37]} Re8 {[%emt 0:01:58]} (24... Nf5 $16 25. Qd2 (25. fxg5 Nd4 $16) 25... Re8) 25. Bd2 $18 {[%emt 0:02:37]} Ref8 {[%emt 0:00:13]} 26. Qf3 {[%emt 0:04:12]} Qxb2 {[%emt 0:00:35] [#]} (26... Qd7 $16 {was worth a try.} 27. Bc3 Qf5) 27. Bc3 {[%emt 0:00:42]} Qa3 {[%emt 0:00:55]} 28. Rxe7 {[%emt 0:01:18]} Rxe7 $11 {[%emt 0:00:03] The position is equal.} 29. Qd5+ {[%emt 0:00:07]} Rff7 {[%emt 0:00:09]} 30. Qa8+ {[%emt 0:00:23]} Rf8 {[%emt 0:00:04]} 31. Qd5+ {[%emt 0:00:06] Weighted Error Value: White=0.20 (precise) /Black=0.16 (very precise)} 1/2-1/2

[Event "87th Spanish Championship 2022"]
[Site "Linares"]
[Date "2022.08.13"]
[Round "4.22"]
[White "Masague Artero, Guerau"]
[Black "Rodriguez Lopez, Rafael"]
[Result "1-0"]
[ECO "D93"]
[WhiteElo "2319"]
[BlackElo "2172"]
[Annotator "TA"]
[PlyCount "93"]
[EventDate "2022.08.11"]
[EventType "swiss"]
[EventCountry "ESP"]
[SourceTitle "playchess.com"]
[Source "ChessBase"]
[SourceQuality "1"]
[TimeControl "5400+30"]

{[%evp 14,93,23,-20,-32,-26,-21,-34,-22,-18,-21,-21,29,0,41,35,35,48,75,76,60,47,57,53,49,50,51,56,66,60,74,61,52,44,58,33,61,13,18,27,22,36,25,25,57,60,257,257,245,245,463,457,458,462,449,445,497,486,799,792,776,730,1511,1344,29973,29974,29974,29974,29974,29962,29977,29978,29976,29967,29981,29982,29982,29983,29984,29984,29984,29985]} 1. d4 {[%emt 0:00:38]} Nf6 {[%emt 0:00:05]} 2. c4 {[%emt 0:00:03]} g6 {[%emt 0:00:04]} 3. Nc3 {[%emt 0:00:18]} d5 {[%emt 0:00:04]} 4. Nf3 {[%emt 0:03:53]} Bg7 {[%emt 0:00:11]} 5. Bf4 {[%emt 0:00:31]} O-O {[%emt 0:00:11]} 6. e3 {[%emt 0:00:06]} c5 {[%emt 0:00:21]} 7. dxc5 {[%emt 0:00:18]} Ne4 {[%emt 0:00:17]} 8. Be5 {[%emt 0:08:49]} (8. Rc1 $5 {[%cal Rc4d5]}) 8... Bxe5 {[%emt 0:00:06] D93: Grünfeld: 4 Nf3 Bg7 5 Bf4 0-0 6 e3.} 9. Nxe5 {[%emt 0:00:08][%cal Bf3e5,Be5d3,Bd3b4,Bb4d5][%mdl 32]} Nxc3 $1 {[%emt 0:04:46]} 10. bxc3 {[%emt 0:00:12]} Qc7 {[%emt 0:01:35] Black is slightly better.} 11. Qd4 {[%emt 0:10:11]} f6 {[%emt 0:00:26]} 12. Nd3 {[%emt 0:07:03] [#]} ({Don't go for} 12. Qxd5+ $2 e6 13. Qd6 Qa5 $19) 12... dxc4 $146 {[%emt 0:00:19]} (12... Nc6 $142 13. Qxd5+ e6) ({Predecessor:} 12... e5 13. Qxd5+ Kg7 14. Qd6 Qa5 15. Nb4 Nc6 16. Qd2 Rd8 17. Qb2 Bg4 18. h3 Bf5 {0-1 (34) Horcajada Reales,G (2208)-Montoya Pecurul,M (2123) Madrid 2015}) 13. Nb4 {[%emt 0:02:27]} Be6 {[%emt 0:14:34]} 14. Bxc4 {[%emt 0:01:29]} Bxc4 {[%emt 0:00:26]} 15. Qxc4+ {[%emt 0:00:05]} Kg7 {[%emt 0:01:02]} 16. Nd5 {[%emt 0:01:28] White is more active.} Qc6 {[%emt 0:00:24]} 17. O-O {[%emt 0:04:02]} Na6 {[%emt 0:06:08]} 18. Nxe7 {[%emt 0:03:06]} (18. Rfd1 {keeps more tension.} Rfe8 19. Nf4 Kh8 20. Ne6) 18... Qxc5 {[%emt 0:00:12]} 19. Qxc5 {[%emt 0:00:41]} Nxc5 {[%emt 0:00:04]} 20. Rfd1 {[%emt 0:02:20]} Kf7 {[%emt 0:00:43]} 21. Nd5 {[%emt 0:00:57]} Rac8 {[%emt 0:00:16]} 22. h4 {[%emt 0:02:53]} Rfd8 {[%emt 0:02:29]} 23. f3 {[%emt 0:09:56]} f5 {[%emt 0:00:04]} 24. Kf2 {[%emt 0:01:32]} Rd6 {[%emt 0:01:04]} 25. Nb4 {[%emt 0:18:52]} (25. Nf4 $14 Rcc6 26. Rd4) 25... Rxd1 $11 {[%emt 0:00:53]} 26. Rxd1 {[%emt 0:00:06][%mdl 4096] Endgame KRN-KRN} Ke6 {[%emt 0:00:05]} 27. Nd5 {[%emt 0:01:27]} Na4 {[%emt 0:03:26]} 28. Rd3 {[%emt 0:00:54]} Ke5 {[%emt 0:03:30]} 29. Nf4 {[%emt 0:08:36] Rd7 is the strong threat.} Rxc3 $2 {[%emt 0:10:55] [#] Black cannot hold the game after this.} ({Black should try} 29... Nb6 $14) 30. Rd7 $1 $18 {[%emt 0:00:13][%csl LRb7,LRh7]} Rc2+ {[%emt 0:00:10]} 31. Kg3 {[%emt 0:00:10]} Nc5 $2 {[%emt 0:00:17]} (31... Kf6 32. Rxb7 Rxa2 33. Rxa7 Nc3 34. Rxh7 Ne2+ 35. Kh2 Nxf4 36. exf4 Ra4) 32. Rxh7 {[%emt 0:00:55]} Rxa2 {[%emt 0:00:13]} 33. Nxg6+ {[%emt 0:00:32]} Kf6 {[%emt 0:00:05]} 34. Nf4 {[%emt 0:00:21]} a5 {[%emt 0:04:14]} 35. Rc7 {[%emt 0:00:05]} Rc2 {[%emt 0:01:12]} (35... Ne6 $142 36. Nxe6 Kxe6 37. Rxb7 Kf6 38. Rb6+ Kg7) 36. h5 {[%emt 0:00:48] Strongly threatening h6.} a4 {[%emt 0:01:00]} 37. Kh2 {[%emt 0:02:14] aiming for h6.} Kg5 {[%emt 0:11:46] [#]} 38. Rxc5 $1 {[%emt 0:00:20][%mdl 512]} Rxc5 {[%emt 0:00:04]} (38... Ra2 39. Kh3) 39. Ne6+ {[%emt 0:00:05] White mates.} Kxh5 {[%emt 0:00:06]} 40. Nxc5 {[%emt 0:00:03] KN-K3P} a3 {[%emt 0:00:08]} 41. Nb3 {[%emt 0:00:36]} a2 {[%emt 0:00:07]} 42. Kg3 {[%emt 0:00:09]} Kg5 {[%emt 0:00:11]} 43. e4 {[%emt 0:00:25]} fxe4 {[%emt 0:04:04]} 44. fxe4 {[%emt 0:00:06]} b5 {[%emt 0:00:06]} 45. Kf3 {[%emt 0:00:04]} b4 {[%emt 0:00:05]} 46. Ke3 {[%emt 0:00:04]} Kg4 {[%emt 0:00:29]} 47. Kd4 {[%emt 0:00:17] Weighted Error Value: White=0.06 (flawless) /Black=0.42} 1-0